bitfinex/quotes_ETHUSD_20240731
["timestamp","ask_amount","ask_price","bid_price","bid_amount"]
[1722396249562,3.03187,3298.3,3297.8,3.03228]
[1722396251384,4.93740111,3298.5,3297.9,3.03218]
[1722396251594,3.0,3298.6,3298.0,3.03211]
[1722396251905,0.55,3298.5,3297.9,3.03216]
[1722396252109,0.55,3298.5,3298.0,3.03211]
[1722396252264,6.03159,3298.6,3298.0,3.03207]
[1722396252464,0.16077192,3298.4,3298.0,3.03207]
[1722396252674,7.9362369,3298.6,3298.0,3.03207]
[1722396252883,0.16077192,3298.3,3298.0,3.03207]
[1722396253108,7.9362369,3298.6,3298.0,3.03207]
[1722396253603,0.16077192,3298.5,3297.8,3.03224]
[1722396253819,3.03184,3298.4,3297.8,3.03224]
[1722396254164,0.16077192,3298.3,3297.8,3.03224]
[1722396255263,2.43397192,3298.3,3297.7,2.2631]
[1722396255463,0.16077192,3298.3,3297.8,0.06064414]
[1722396255663,0.16077192,3298.3,3297.8,3.09291414]
[1722396255913,3.03179,3298.4,3297.8,3.09291414]
[1722396256110,0.16080375,3298.2,3297.9,3.0322]
[1722396256483,3.03175,3298.5,3297.9,3.0322]
[1722396256688,0.16080375,3298.1,3297.9,3.0322]
[1722396256881,3.03186,3298.4,3297.8,0.06063916]
[1722396257085,0.16080375,3298.0,3297.7,5.29543]
[1722396257282,3.03186,3298.3,3297.7,6.869227]
[1722396257512,0.16080375,3297.9,3297.7,6.869227]
[1722396257896,6.0638,3298.3,3297.7,6.869227]
[1722396258099,0.16080375,3297.8,3297.7,5.29543]
[1722396258307,3.03196,3298.2,3297.7,5.29543]
[1722396258531,0.16080375,3297.8,3297.3,3.03269]
[1722396258685,3.0322,3298.0,3297.4,3.03261]
[1722396258883,0.16080375,3297.7,3297.4,3.87097]
[1722396259230,3.0322,3298.0,3297.4,0.83836]
[1722396259373,0.16079215,3297.6,3297.2,5.35115]
[1722396259703,3.03247,3297.7,3297.2,5.35115]
[1722396260103,0.16077192,3297.6,3297.2,5.35115]
[1722396260611,3.03247,3297.7,3297.2,5.35115]
[1722396260926,3.19338192,3297.5,3297.0,3.03305]
[1722396261107,3.03261,3297.5,3297.0,3.03305]
[1722396261489,0.16077192,3297.4,3296.9,3.03315]
[1722396261837,3.03277,3297.4,3296.8,12.82999]
[1722396261970,2.2627,3297.6,3296.9,0.97968]
[1722396261971,3.03257,3297.6,3296.9,0.97968]
[1722396262171,0.16067639,3297.3,3296.9,4.01276]
[1722396262376,3.5826,3297.5,3296.9,4.01276]
[1722396262577,0.16067639,3297.2,3296.9,3.03308]
[1722396262820,3.5826,3297.5,3296.9,3.03308]
[1722396262981,0.16067639,3297.1,3296.9,3.03308]
[1722396263180,3.5826,3297.5,3296.9,3.03308]
[1722396263383,0.16067639,3297.0,3296.9,3.03308]
[1722396263613,3.5826,3297.5,3296.9,3.03308]
[1722396263774,0.16067639,3297.0,3296.9,3.03308]
[1722396263980,3.5826,3297.5,3296.9,3.03308]
[1722396264181,0.16067639,3297.0,3296.9,3.03308]
[1722396264398,3.5826,3297.5,3296.9,3.03308]
[1722396264631,0.16067639,3297.0,3296.9,3.03308]
[1722396264790,6.06546,3297.4,3296.9,3.03308]
[1722396264991,0.16067639,3297.0,3296.8,12.83003]
[1722396265299,3.0327,3297.4,3296.8,12.82998]
[1722396265503,3.0327,3297.4,3296.9,3.03315]
[1722396265717,0.16067639,3297.3,3296.9,3.03315]
[1722396267720,3.58262,3297.5,3296.9,3.878463]
[1722396267941,0.16067639,3297.2,3296.9,3.03315]
[1722396268100,3.58262,3297.5,3296.9,3.03315]
[1722396268299,0.16067639,3297.1,3296.9,3.03315]
[1722396268486,3.58262,3297.5,3296.9,3.03315]
[1722396268687,0.16067639,3297.0,3296.9,3.03315]
[1722396268929,3.58262,3297.5,3296.9,3.03315]
[1722396269226,0.16048531,3297.4,3297.0,0.06065689]
[1722396269386,3.0,3297.7,3297.2,3.03286]
[1722396269590,0.16048531,3297.6,3297.2,3.03286]
[1722396271336,0.16048531,3297.6,3297.2,3.03281]
[1722396271713,3.0,3297.7,3297.2,3.03281]
[1722396272016,0.16040712,3297.6,3297.2,3.03281]
[1722396272198,3.19291712,3297.6,3297.0,3.03299]
[1722396272402,3.0326,3297.5,3297.0,3.03299]
[1722396272602,0.16040712,3297.4,3297.0,3.03299]
[1722396272834,0.16040712,3297.4,3297.1,3.0329]
[1722396273135,6.03247,3297.7,3297.2,3.03287]
[1722396273431,3.03251,3297.6,3297.0,3.03297]
[1722396273601,0.16043029,3297.5,3297.0,3.03297]
[1722396274215,3.03275,3297.4,3296.8,8.45316]
[1722396274401,3.03275,3297.4,3296.8,3.03317]
[1722396274604,0.16043029,3297.3,3296.8,3.03317]
[1722396275386,0.16043029,3297.3,3296.9,3.03313]
[1722396276105,0.16043029,3297.3,3296.8,0.69130669]
[1722396276324,0.16043029,3297.3,3296.8,3.03324]
[1722396276692,3.19321029,3297.3,3296.8,3.03319]
[1722396276887,0.16043029,3297.3,3296.9,3.03314]
[1722396277221,3.03269,3297.4,3296.9,3.03314]
[1722396277541,3.19322029,3297.3,3296.7,10.44324]
[1722396277695,0.16043029,3297.3,3296.9,3.0331]
[1722396278833,0.16043029,3297.3,3296.7,8.987751]
[1722396279136,3.03279,3297.3,3296.8,3.0332]
[1722396279336,0.16038976,3297.2,3296.8,3.0332]
[1722396279640,3.03279,3297.3,3296.8,3.0332]
[1722396279809,0.16038976,3297.2,3296.8,3.0332]
[1722396280140,3.03279,3297.3,3296.8,3.0332]
[1722396280289,3.19339976,3297.1,3296.5,5.33438]
[1722396280494,0.55,3297.2,3296.8,3.03318]
[1722396280692,0.16038396,3297.0,3296.8,3.03318]
[1722396280920,3.55,3297.3,3296.6,3.03338]
[1722396281088,0.16038396,3296.9,3296.7,0.533427]
[1722396281290,3.55,3297.3,3296.6,3.03338]
[1722396281512,0.16038396,3296.8,3296.7,3.03333]
[1722396281743,3.03287,3297.2,3296.7,3.03333]
[1722396282256,0.16038396,3297.1,3296.7,3.03333]
[1722396282559,0.16038396,3297.1,3296.9,3.03306]
[1722396282850,0.16038396,3297.1,3297.0,8.39232]
[1722396283009,4.9064073,3297.7,3297.1,3.0329]
[1722396283213,0.71029419,3297.6,3297.1,3.0329]
[1722396283415,3.71029419,3297.6,3297.1,3.0329]
[1722396284347,3.16029419,3297.6,3297.2,3.03283]
[1722396284642,0.16029419,3297.6,3297.2,3.03281]
[1722396285072,0.16029419,3297.6,3297.3,3.03275]
[1722396286123,0.16029419,3297.6,3297.1,3.03289]
[1722396286421,0.16029419,3297.6,3297.2,3.03285]
[1722396286744,0.16029419,3297.6,3297.3,3.03278]
[1722396288469,0.16029419,3297.6,3297.3,3.03269]
[1722396288768,0.16029419,3297.6,3297.4,3.03267]
[1722396289528,1.90666113,3297.7,3297.4,3.03267]
[1722396290053,0.16033762,3297.6,3297.4,3.03267]
[1722396290250,2.06699875,3297.6,3297.4,3.03267]
[1722396290444,0.16033762,3297.6,3297.4,3.03267]
[1722396290653,2.06699875,3297.6,3297.4,3.03267]
[1722396290848,0.16033762,3297.6,3297.4,3.03267]
[1722396291419,2.06885142,3297.6,3297.4,3.03267]
[1722396291618,2.06928166,3297.6,3297.4,3.03267]
[1722396292826,0.16033762,3297.6,3297.2,3.03281]
[1722396293021,1.90918684,3297.4,3297.3,3.03273]
[1722396293225,2.06953025,3297.5,3297.3,3.03273]
[1722396293527,1.90912954,3297.6,3297.3,3.03273]
[1722396294078,2.06947295,3297.5,3297.3,3.03273]
[1722396294371,0.16034341,3297.5,3297.4,3.03269]
[1722396294554,0.16034341,3297.5,3297.4,9.864749]
[1722396294956,0.16034341,3297.5,3297.4,3.799369]
[1722396295161,1.90908817,3297.8,3297.6,3.03249]
[1722396295483,1.90908817,3297.8,3297.6,4.09449]
[1722396295823,1.90908817,3297.8,3297.6,1.062]
[1722396296573,1.90908817,3297.7,3297.6,1.062]
[1722396297070,1.90908817,3297.7,3297.4,4.0946]
[1722396297423,0.16040712,3297.6,3297.4,4.0946]
[1722396297628,1.90978439,3297.7,3297.4,4.0946]
[1722396297871,1.90978439,3297.7,3297.5,3.03259]
[1722396298328,1.90978439,3297.6,3297.5,3.03259]
[1722396298638,1.90978439,3297.7,3297.4,1.062]
[1722396298861,1.90978439,3297.6,3297.5,3.0326]
[1722396299528,3.0,3298.0,3297.5,3.0326]
[1722396299529,1.90978439,3297.7,3297.5,3.0326]
[1722396300215,1.90978439,3297.7,3297.5,3.03255]
[1722396300388,1.90978439,3297.7,3297.6,3.0325]
[1722396300739,5.22902369,3298.0,3297.7,3.03241]
[1722396300879,2.22902369,3298.0,3297.7,3.03241]
[1722396301079,5.22902369,3298.1,3297.7,3.03241]
[1722396301280,0.36848601,3298.0,3297.8,3.03232]
[1722396301475,2.22902369,3298.2,3298.1,3.03204]
[1722396301676,15.50126,3299.0,3298.1,3.03204]
[1722396301677,2.22902369,3298.7,3298.4,3.0317]
[1722396301990,2.22902369,3298.9,3298.6,1.062]
[1722396302300,5.41154,3299.1,3298.6,4.09358]
[1722396302301,1.90889897,3298.7,3298.6,4.09358]
[1722396302633,1.90889897,3298.9,3298.7,3.03149]
[1722396302782,5.41127,3299.4,3298.7,3.03149]
[1722396302783,1.90889897,3298.8,3298.7,3.03149]
[1722396303105,1.90899964,3298.9,3298.7,3.03149]
[1722396303280,1.90801348,3299.0,3298.7,3.03149]
[1722396304162,1.90801348,3299.1,3298.7,3.03149]
[1722396304515,1.90801348,3299.1,3298.8,3.03139]
[1722396304711,1.90801348,3299.1,3298.9,3.03131]
[1722396305130,1.90801348,3299.1,3298.7,3.03142]
[1722396305469,4.93913348,3299.1,3298.5,3.03164]
[1722396305966,1.90801348,3299.1,3298.5,3.03161]
[1722396306175,3.0,3299.2,3298.1,2.3303]
[1722396306176,3.0,3299.2,3298.7,3.03149]
[1722396306327,1.90627636,3299.1,3298.8,3.03139]
[1722396306527,4.90627636,3299.3,3298.9,6.06249]
[1722396306768,1.90627636,3299.3,3299.0,3.03122]
[1722396306985,1.90627636,3299.3,3299.1,3.03111]
[1722396307181,1.90627636,3299.4,3299.1,3.03111]
[1722396307330,4.90627636,3299.6,3299.2,3.03102]
[1722396307532,0.55,3299.5,3299.2,3.03102]
[1722396307858,3.25913899,3299.8,3299.4,3.03085]
[1722396308176,1.35286263,3299.8,3299.5,3.03069]
[1722396308344,0.603039,3299.9,3299.6,3.03066]
[1722396308965,0.603039,3299.9,3299.4,3.03077]
[1722396309135,0.603039,3299.9,3299.3,3.03089]
[1722396309474,3.603039,3299.9,3299.3,6.06177]
[1722396309661,0.55,3299.8,3299.4,3.03079]
[1722396310177,0.9653039,3299.8,3299.2,3.03095]
[1722396310483,0.9653039,3299.8,3299.4,3.03082]
[1722396311086,3.9957839,3299.8,3299.3,3.03094]
[1722396311310,0.9653039,3299.8,3299.3,3.03094]
[1722396311459,0.9653039,3299.8,3299.4,3.03084]
[1722396311891,0.9653039,3299.8,3299.5,3.03076]
[1722396312069,0.55,3299.8,3299.5,3.03076]
[1722396312273,3.0,3300.1,3299.7,3.03056]
[1722396312455,3.0,3300.2,3299.7,3.03056]
[1722396312683,3.0,3300.2,3299.0,10.44118]
[1722396312684,3.0,3300.2,3299.8,3.03043]
[1722396312886,2.2611,3300.4,3299.7,3.03056]
[1722396312887,5.2611,3300.4,3299.7,3.03056]
[1722396313061,5.2611,3300.4,3299.8,3.09103351]
[1722396313256,5.2611,3300.4,3299.9,3.03035]
[1722396313561,6.090194,3300.4,3299.9,3.03035]
[1722396313755,6.090194,3300.4,3299.7,3.0305]
[1722396314058,3.03022,3300.1,3299.4,3.03081]
[1722396314302,3.03036,3300.0,3299.4,3.03081]
[1722396314484,3.03016,3300.2,3299.5,3.03067]
[1722396314684,0.55,3300.1,3299.5,3.03067]
[1722396315361,0.55,3300.1,3299.6,3.03065]
[1722396316303,3.03032,3300.0,3299.3,3.03087]
[1722396316501,3.03048,3299.8,3299.1,5.46198]
[1722396316665,0.358032,3299.9,3299.3,3.03088]
[1722396317372,3.388472,3299.9,3299.3,3.03088]
[1722396318838,0.358032,3299.9,3299.4,3.03083]
[1722396319037,3.0303,3300.0,3299.4,3.03083]
[1722396319206,0.55,3299.9,3299.4,3.03083]
[1722396319804,3.0,3300.4,3299.7,3.03052]
[1722396320016,3.03003,3300.3,3299.7,3.03052]
[1722396320264,3.0,3300.2,3299.7,3.09112405]
[1722396320569,3.0,3300.2,3299.7,3.03052]
[1722396321747,3.03045,3299.9,3299.3,3.03086]
[1722396322143,3.03045,3299.9,3299.4,3.03084]
[1722396323230,3.03045,3299.9,3299.1,5.52047]
[1722396323476,3.03063,3299.7,3299.1,2.4894]
[1722396323775,6.06128,3299.7,3299.1,2.4894]
[1722396323992,3.03063,3299.7,3299.1,2.4894]
[1722396324283,3.03063,3299.7,3299.1,5.5205]
[1722396324631,6.957576,3299.9,3299.2,3.03097]
[1722396324836,0.55,3299.8,3299.3,3.03088]
[1722396325609,0.55,3299.8,3299.3,3.03092]
[1722396327589,0.1615965,3299.7,3299.3,3.03092]
[1722396328086,0.1615965,3299.6,3299.3,3.03092]
[1722396328386,3.58049,3299.8,3299.3,3.03092]
[1722396328591,0.1615965,3299.5,3299.3,3.03092]
[1722396328770,3.58049,3299.8,3299.3,3.03092]
[1722396329089,0.55,3299.8,3299.4,3.03078]
[1722396329288,0.1615965,3299.7,3299.5,3.03074]
[1722396329488,0.55,3299.8,3299.5,3.03074]
[1722396329693,0.1615965,3299.6,3299.5,3.03074]
[1722396329849,3.0,3300.2,3299.6,3.03058]
[1722396330384,3.0,3300.2,3299.7,3.03056]
[1722396330788,3.0,3300.2,3299.7,6.06107]
[1722396331015,3.0,3300.2,3299.7,3.03051]
[1722396331300,3.0,3300.2,3299.7,5.33081]
[1722396331453,3.0,3300.3,3299.9,3.03038]
[1722396331656,0.55,3300.2,3299.9,3.03038]
[1722396332270,3.0,3300.3,3300.0,3.03028]
[1722396332556,2.3601,3300.7,3299.7,2.3003]
[1722396332756,0.55,3300.6,3300.1,3.03015]
[1722396333256,3.02958,3300.8,3300.1,3.03015]
[1722396333858,3.02924,3301.2,3300.3,3.02994]
[1722396334077,3.02944,3301.0,3300.3,3.02997]
[1722396334292,3.0,3300.9,3300.3,3.02997]
[1722396334459,6.02948,3300.9,3300.3,3.02996]
[1722396335259,3.9592554,3300.9,3300.1,3.03019]
[1722396335468,3.0297,3300.7,3300.1,6.06035]
[1722396335690,3.0297,3300.7,3300.2,3.03009]
[1722396337660,3.02975,3300.6,3300.1,3.03016]
[1722396339878,3.02995,3300.4,3299.9,6.0607]
[1722396340497,0.55,3300.5,3300.0,3.03029]
[1722396341342,3.57985,3300.5,3300.0,3.03029]
[1722396342527,0.19337902,3300.4,3300.0,3.03029]
[1722396343396,0.19337902,3300.4,3300.0,3.03024]
[1722396343565,0.19337902,3300.4,3300.1,3.03021]
[1722396344211,0.19337902,3300.4,3300.2,3.0301]
[1722396347512,3.22330902,3300.4,3299.8,3.03041]
[1722396347915,3.22330902,3300.4,3299.9,3.03033]
[1722396348391,3.22330902,3300.4,3300.0,3.0303]
[1722396348591,0.19337902,3300.4,3300.0,3.0303]
[1722396350859,0.19337902,3300.4,3300.0,6.06055]
[1722396351150,0.19337902,3300.4,3300.1,3.09080073]
[1722396351302,0.19337902,3300.4,3300.3,1.126]
[1722396352443,4.90687785,3300.7,3300.3,1.126]
[1722396352648,4.90733966,3300.7,3300.3,4.15602]
[1722396353204,1.90733966,3300.6,3300.3,1.126]
[1722396354248,1.90778835,3300.5,3300.3,1.126]
[1722396354660,4.93767835,3300.5,3300.1,1.126]
[1722396355478,1.90783302,3300.4,3300.1,1.126]
[1722396357357,3.03008,3300.3,3300.1,1.126]
[1722396357558,3.03011,3300.2,3300.1,1.126]
[1722396357867,3.54327748,3300.2,3299.7,2.3003]
[1722396358020,4.23683302,3300.1,3299.6,1.126]
[1722396358224,4.93827302,3299.9,3299.6,1.126]
[1722396358766,2.10217625,3299.8,3299.6,1.126]
[1722396359435,0.19373465,3299.8,3299.6,1.126]
[1722396360343,2.10217625,3299.8,3299.2,10.44097]
[1722396360546,5.13267625,3299.8,3299.5,1.126]
[1722396361733,2.10217625,3299.8,3299.5,1.126]
[1722396362278,2.1020624,3299.8,3299.5,1.126]
[1722396362671,8.16314852,3299.8,3299.5,1.126]
[1722396362975,5.13257852,3299.8,3299.5,1.126]
[1722396363180,4.93889387,3299.7,3299.5,1.126]
[1722396363500,0.19362478,3299.6,3299.5,1.126]
[1722396364882,2.10193865,3299.6,3299.5,1.126]
[1722396365088,0.19362478,3299.6,3299.5,1.126]
[1722396365948,0.19362478,3299.6,3299.5,7.249426]
[1722396366191,0.19362478,3299.6,3299.5,10.280186]
[1722396366549,1.90863195,3300.0,3299.8,3.03042]
[1722396366887,0.19345709,3299.9,3299.8,1.126]
[1722396368309,0.19345709,3299.9,3299.6,3.03065]
[1722396368595,2.10208904,3299.9,3299.4,4.15676]
[1722396368834,1.90863195,3299.8,3299.4,4.15676]
[1722396369538,0.19348602,3299.7,3299.4,4.15676]
[1722396369717,1.90863195,3299.8,3299.4,4.15676]
[1722396369913,4.93912195,3299.8,3299.4,1.126]
[1722396370116,0.19348602,3299.7,3299.4,1.126]
[1722396370285,1.90863195,3299.7,3299.4,1.126]
[1722396370599,1.90863195,3299.7,3299.5,3.03075]
[1722396370600,0.19348602,3299.6,3299.5,3.03075]
[1722396370809,0.19348602,3299.6,3299.5,4.15675]
[1722396371110,1.90863195,3299.7,3299.5,4.15675]
[1722396371266,0.19348602,3299.6,3299.5,4.15675]
[1722396371487,4.93922195,3299.7,3299.3,1.126]
[1722396371823,1.90863195,3299.5,3299.3,1.126]
[1722396372231,0.19348602,3299.6,3299.3,1.126]
[1722396372381,1.9096473,3299.5,3299.2,12.85753]
[1722396372581,2.10313332,3299.5,3299.4,1.126]
[1722396372796,2.10312006,3299.5,3299.4,1.126]
[1722396374288,2.10410545,3299.5,3299.4,1.126]
[1722396375135,0.19348602,3299.5,3299.4,1.126]
[1722396375288,5.25849638,3299.7,3299.4,1.126]
[1722396375487,0.19345998,3299.5,3299.4,1.126]
[1722396375694,5.26051587,3299.6,3299.4,1.126]
[1722396375934,0.19345998,3299.5,3299.4,1.126]
[1722396376107,0.53270301,3299.5,3299.4,1.126]
[1722396376291,2.76252888,3299.5,3299.4,1.126]
[1722396377009,0.53270301,3299.5,3299.4,1.126]
[1722396377328,2.76252888,3299.5,3299.4,1.126]
[1722396379197,2.76403966,3299.5,3299.4,1.126]
[1722396380841,0.19345998,3299.5,3299.4,1.126]
[1722396382312,1.90937715,3299.6,3299.4,4.15685]
[1722396382531,1.90937715,3299.6,3299.5,6.65496]
[1722396382703,1.90937715,3299.7,3299.5,6.65496]
[1722396382900,1.90937715,3299.7,3299.6,1.126]
[1722396383922,1.90852925,3299.7,3299.6,1.126]
[1722396384748,1.90815907,3299.7,3299.6,1.126]
[1722396384949,3.03072,3299.6,3299.4,1.126]
[1722396385204,4.93886907,3299.6,3299.4,1.126]
[1722396385509,4.93886907,3299.6,3299.2,1.126]
[1722396386344,1.90815907,3299.6,3299.2,1.126]
[1722396386501,4.93886907,3299.6,3299.2,1.126]
[1722396387330,0.19340215,3299.5,3299.2,1.126]
[1722396389252,3.03091,3299.4,3299.2,1.126]
[1722396389405,3.03101,3299.3,3298.9,1.126]
[1722396389951,3.22441481,3299.2,3298.9,1.126]
[1722396391414,0.19338481,3299.2,3298.9,1.126]
[1722396391736,4.93703504,3299.4,3298.9,1.126]
[1722396392054,0.19338481,3299.1,3298.9,1.126]
[1722396392202,3.03109,3299.2,3298.9,1.126]
[1722396392406,0.19338481,3299.0,3298.9,1.126]
[1722396392640,3.03113,3299.1,3298.6,5.47847]
[1722396392641,3.0312,3299.1,3298.6,2.4469]
[1722396392841,3.22461481,3299.0,3298.7,1.126]
[1722396393651,3.03136,3298.9,3298.7,1.126]
[1722396394236,0.19338481,3298.8,3298.7,1.126]
[1722396395723,3.0315,3298.7,3298.5,1.126]
[1722396396227,0.19323728,3298.6,3298.5,1.126]
[1722396397042,3.03136,3298.9,3298.5,1.126]
[1722396397243,0.19320258,3298.6,3298.5,1.126]
[1722396397436,3.03136,3298.9,3298.5,1.126]
[1722396397639,0.19320258,3298.6,3298.5,1.126]
[1722396397840,3.03136,3298.9,3298.5,1.126]
[1722396398051,0.19320258,3298.6,3298.5,1.126]
[1722396398556,3.03136,3298.9,3298.5,1.126]
[1722396398727,0.19320258,3298.6,3298.5,1.126]
[1722396398935,3.03136,3298.9,3298.5,1.126]
[1722396399263,0.19320258,3298.6,3298.5,1.126]
[1722396399472,3.03136,3298.9,3298.5,1.126]
[1722396399671,0.19320258,3298.6,3298.5,1.126]
[1722396399828,3.03146,3298.8,3298.5,1.126]
[1722396400028,0.19320258,3298.6,3298.5,1.126]
[1722396400266,3.03136,3298.9,3298.5,1.126]
[1722396400480,0.19320258,3298.6,3298.5,1.126]
[1722396400678,3.03136,3298.9,3298.5,1.126]
[1722396400879,0.19320258,3298.6,3298.5,1.126]
[1722396401089,3.03136,3298.9,3298.5,1.126]
[1722396401259,0.19320258,3298.6,3298.5,1.126]
[1722396401458,3.03149,3298.7,3298.5,1.126]
[1722396401758,0.19320258,3298.6,3298.5,1.126]
[1722396403376,3.03182,3298.4,3298.0,7.41]
[1722396403564,2.10130716,3298.6,3298.0,8.536]
[1722396403767,0.19298564,3298.3,3298.0,8.536]
[1722396404250,6.06349,3298.5,3298.0,8.536]
[1722396404465,0.19295091,3298.2,3298.0,8.536]
[1722396404661,1.90808124,3298.4,3298.0,8.536]
[1722396405259,0.19295091,3298.3,3298.0,1.126]
[1722396405885,4.93982124,3298.5,3298.0,1.126]
[1722396406086,0.19295091,3298.2,3298.0,1.126]
[1722396406288,4.93982124,3298.5,3298.0,1.126]
[1722396406489,0.19295091,3298.1,3298.0,6.06428]
[1722396406691,3.03141,3298.8,3298.2,3.03188]
[1722396406692,4.93949124,3298.8,3298.2,3.03188]
[1722396406998,4.93949124,3298.8,3298.5,2.3327]
[1722396406999,0.19295091,3298.7,3298.5,2.3327]
[1722396407149,3.03108,3299.2,3298.5,2.3327]
[1722396407150,4.93930124,3299.0,3298.5,2.3327]
[1722396407489,0.19287281,3298.6,3298.5,2.3327]
[1722396407653,3.0314,3298.8,3298.5,2.3327]
[1722396407995,5.45692123,3298.9,3298.5,2.3327]
[1722396408202,3.55,3298.9,3298.5,2.3327]
[1722396408493,0.19287281,3298.8,3298.5,2.3327]
[1722396415402,2.10028074,3298.8,3298.4,1.126]
[1722396416679,3.0315,3298.7,3298.4,1.126]
[1722396416991,0.19290751,3298.6,3298.4,1.126]
[1722396417516,3.03141,3298.8,3298.4,1.126]
[1722396417711,0.19290751,3298.5,3298.4,1.18662863]
[1722396417872,3.03141,3298.8,3298.4,1.18662863]
[1722396418075,0.19290751,3298.5,3298.4,1.18662863]
[1722396418275,3.03141,3298.8,3298.4,1.18662863]
[1722396418476,0.19290751,3298.5,3298.4,1.18662863]
[1722396418718,3.03141,3298.8,3298.4,1.18662863]
[1722396418918,0.19290751,3298.5,3298.4,1.18662863]
[1722396419128,3.03141,3298.8,3298.4,1.18662863]
[1722396419289,0.19290751,3298.5,3298.4,1.18662863]
[1722396419699,4.93908505,3298.8,3298.4,1.18662863]
[1722396420209,0.19290751,3298.7,3298.4,1.18662863]
[1722396420430,4.93908505,3298.8,3298.4,1.18662863]
[1722396420640,0.19290751,3298.6,3298.4,1.126]
[1722396420819,1.90774456,3298.8,3298.4,4.15772]
[1722396421022,0.19290751,3298.5,3298.4,9.388342]
[1722396421209,1.90774456,3299.0,3298.6,3.03151]
[1722396421404,1.90762514,3299.1,3298.7,4.15749]
[1722396422448,1.90762514,3299.1,3298.7,1.126]
[1722396422648,4.93875514,3299.1,3298.7,1.126]
[1722396422947,3.0,3299.0,3298.7,1.126]
[1722396424536,4.90773039,3299.0,3298.5,1.126]
[1722396424710,1.90773039,3298.8,3298.5,1.126]
[1722396425578,4.93922039,3298.7,3298.2,4.15791]
[1722396425786,4.93922039,3298.7,3298.1,9.866]
[1722396425787,4.93923039,3298.7,3298.1,9.866]
[1722396426079,4.93923039,3298.7,3297.7,15.42237]
[1722396426080,3.03174,3298.5,3297.9,2.456]
[1722396426235,3.03201,3298.2,3297.8,1.126]
[1722396428079,4.93989103,3298.4,3297.8,4.15827]
[1722396428267,0.55,3298.3,3297.9,3.03223]
[1722396428573,1.90806103,3298.5,3298.2,3.4164]
[1722396428746,0.55,3298.4,3298.2,3.4164]
[1722396429336,2.45806103,3298.5,3298.0,3.4164]
[1722396429883,5.49003218,3298.5,3298.0,6.44853]
[1722396430055,2.45835218,3298.5,3298.0,6.44853]
[1722396430428,1.90835218,3298.5,3298.1,3.09267717]
[1722396430538,4.90835218,3298.6,3298.2,4.15793]
[1722396431278,1.90835218,3298.5,3298.2,1.126]
[1722396431643,1.90835218,3298.5,3298.1,3.09267447]
[1722396432136,4.94003218,3298.5,3298.0,4.4609358]
[1722396432379,1.90835218,3298.3,3298.0,1.126]
[1722396432745,0.19275128,3298.2,3298.0,4.15812]
[1722396433080,1.90914379,3298.4,3298.0,1.126]
[1722396433283,0.19275128,3298.1,3297.9,3.03216]
[1722396433468,1.90914379,3298.3,3297.9,3.03216]
[1722396433469,3.0318,3298.4,3297.9,3.03216]
[1722396433669,0.19275128,3298.0,3297.9,3.03216]
[1722396433836,4.94116188,3298.4,3297.9,3.985012]
[1722396434042,0.19275128,3298.0,3297.9,7.017172]
[1722396434269,1.90936188,3298.4,3297.9,7.017162]
[1722396434465,0.19273392,3298.0,3297.9,3.985002]
[1722396434682,1.90936188,3298.3,3297.9,3.03215]
[1722396434842,0.19273102,3298.0,3297.9,3.03215]
[1722396435036,1.90936188,3298.3,3297.9,3.03215]
[1722396435242,1.90936188,3298.3,3297.7,3.0324]
[1722396435243,0.19273102,3298.0,3297.7,3.03239]
[1722396435472,1.90985781,3298.1,3297.7,4.15839]
[1722396435678,0.19271652,3297.9,3297.8,3.03232]
[1722396435867,1.90985781,3298.2,3297.7,4.15833]
[1722396436096,1.90985781,3298.3,3297.9,4.15818]
[1722396436300,1.90998621,3298.3,3298.0,3.03213]
[1722396436611,1.90998621,3298.3,3298.1,1.126]
[1722396436774,3.0,3298.6,3298.2,3.03195]
[1722396436775,1.90998621,3298.4,3298.2,3.03195]
[1722396436956,1.90998621,3298.5,3298.2,3.03195]
[1722396437155,1.90998621,3298.5,3298.2,3.03189]
[1722396437484,1.90998621,3298.5,3298.3,4.15781]
[1722396437685,1.90998621,3298.6,3298.3,4.15781]
[1722396438500,1.90998621,3298.5,3298.3,4.15781]
[1722396438686,1.90998621,3298.5,3298.3,1.126]
[1722396439231,1.90998621,3298.5,3298.4,3.03177]
[1722396439378,1.91058636,3298.5,3298.4,3.03177]
[1722396439709,1.91055471,3298.6,3298.3,3.47]
[1722396439998,1.91055471,3298.4,3298.3,2.344]
[1722396440200,1.91055471,3298.5,3298.3,2.344]
[1722396440407,1.91055471,3298.5,3298.3,5.37583]
[1722396440616,1.91055471,3298.4,3298.3,5.37583]
[1722396440828,1.91055471,3298.5,3298.3,5.37583]
[1722396442810,3.0,3298.8,3298.3,5.37583]
[1722396443122,1.91067623,3298.5,3298.4,3.03177]
[1722396443430,3.0,3298.8,3298.4,3.03177]
[1722396443715,1.91062229,3298.7,3298.5,3.03165]
[1722396444623,1.91062229,3298.7,3298.4,0.95336]
[1722396444980,1.91062229,3298.7,3298.4,3.98507]
[1722396445189,1.91062229,3298.7,3298.4,0.95336]
[1722396445420,1.91061793,3298.6,3298.3,6.50177]
[1722396445688,1.91061793,3298.6,3298.4,3.03176]
[1722396446091,6.03132,3298.9,3298.4,3.03176]
[1722396446315,1.91066273,3298.6,3298.4,3.03176]
[1722396447495,0.19279758,3298.5,3298.4,3.03176]
[1722396448095,1.91066273,3298.7,3298.4,3.03176]
[1722396448302,0.19279758,3298.5,3298.4,3.03176]
[1722396448477,1.91066273,3298.6,3298.4,3.03176]
[1722396448712,0.19279758,3298.5,3298.3,6.50179]
[1722396449083,1.91066273,3298.6,3298.3,6.50179]
[1722396449282,0.19279758,3298.4,3298.3,4.15779]